[Event "Titled Tuesday Blitz April 19 Early 2022"]
[White "Hnydiuk, Aleksander"]
[Black "Petrosyan, Manuel"]
[WhiteFideId "1109057"]
[BlackFideId "13300857"]
[WhiteElo "2374"]
[BlackElo "2592"]
[Result "1-0"]
[Round "05"]
[TimeControl "180+1"]
[Date "2022.04.19"]
[WhiteClock "0:00:17"]
[BlackClock "0:00:01"]

1. Nf3 {[%clk 0:03:00]}  d5 {[%clk 0:02:55]} 2. d4 {[%clk 0:03:00]}  Bf5 {[%clk 0:02:54]} 3. c4 {[%clk 0:03:00]}  e6 {[%clk 0:02:54]} 4. Nc3 {[%clk 0:02:58]}  Nf6 {[%clk 0:02:54]} 5. Nh4 {[%clk 0:02:46]}  Bg4 {[%clk 0:02:47]} 6. h3 {[%clk 0:02:46]}  Bh5 {[%clk 0:02:47]} 7. g4 {[%clk 0:02:46]}  Bg6 {[%clk 0:02:45]} 8. Nxg6 {[%clk 0:02:37]}  hxg6 {[%clk 0:02:46]} 9. Bg2 {[%clk 0:02:26]}  Bb4 {[%clk 0:02:33]} 10. Qb3 {[%clk 0:01:59]}  Nc6 {[%clk 0:02:32]} 11. Be3 {[%clk 0:01:52]}  a5 {[%clk 0:02:28]} 12. O-O-O {[%clk 0:01:44]}  Bxc3 {[%clk 0:02:09]} 13. Qxc3 {[%clk 0:01:44]}  dxc4 {[%clk 0:01:37]} 14. Qxc4 {[%clk 0:01:42]}  Nd5 {[%clk 0:01:34]} 15. Bd2 {[%clk 0:01:38]}  Qd6 {[%clk 0:01:31]} 16. e3 {[%clk 0:01:24]}  g5 {[%clk 0:01:27]} 17. Kb1 {[%clk 0:01:22]}  a4 {[%clk 0:01:18]} 18. Rc1 {[%clk 0:01:15]}  a3 {[%clk 0:01:17]} 19. b3 {[%clk 0:01:15]}  f6 {[%clk 0:01:06]} 20. Qb5 {[%clk 0:01:10]}  Ra7 {[%clk 0:01:00]} 21. e4 {[%clk 0:01:05]}  Nf4 {[%clk 0:00:45]} 22. Bxf4 {[%clk 0:00:59]}  Qxf4 {[%clk 0:00:46]} 23. d5 {[%clk 0:00:36]}  Qe5 {[%clk 0:00:34]} 24. Rc2 {[%clk 0:00:31]}  O-O {[%clk 0:00:34]} 25. Qc5 {[%clk 0:00:29]}  Ra5 {[%clk 0:00:22]} 26. Qc3 {[%clk 0:00:28]}  Nd4 {[%clk 0:00:13]} 27. Rd2 {[%clk 0:00:28]}  Nc6 {[%clk 0:00:05]} 28. Rc1 {[%clk 0:00:21]}  Qxc3 {[%clk 0:00:05]} 29. Rxc3 {[%clk 0:00:22]}  exd5 {[%clk 0:00:06]} 30. exd5 {[%clk 0:00:22]}  Nb4 {[%clk 0:00:05]} 31. Rxc7 {[%clk 0:00:21]}  Re8 {[%clk 0:00:05]} 32. d6 {[%clk 0:00:19]}  Re1+ {[%clk 0:00:02]} 33. Rc1 {[%clk 0:00:20]}  Rxc1+ {[%clk 0:00:03]} 34. Kxc1 {[%clk 0:00:20]}  Ra8 {[%clk 0:00:03]} 35. Bxb7 {[%clk 0:00:19]}  Rd8 {[%clk 0:00:03]} 36. d7 {[%clk 0:00:18]}  Kf7 {[%clk 0:00:02]} 37. Bc8 {[%clk 0:00:18]}  Ke7 {[%clk 0:00:02]} 38. Kb1 {[%clk 0:00:18]}  Rh8 {[%clk 0:00:01]} 39. Rd4 {[%clk 0:00:17]}  Nc6 {[%clk 0:00:01]} 40. Re4+ {[%clk 0:00:17]} 1-0


[Site "https://www.chess.com"]

[Event "Titled Tuesday Blitz April 19 Early 2022"]
[White "Hoffmann, Asa"]
[Black "De Arruda, Leandro Formes"]
[WhiteFideId "2001470"]
[BlackFideId "22722009"]
[WhiteElo "2117"]
[BlackElo "1852"]
[Result "1-0"]
[Round "05"]
[TimeControl "180+1"]
[Date "2022.04.19"]
[WhiteClock "0:00:49"]
[BlackClock "0:00:11"]

1. d4 {[%clk 0:02:59]}  d5 {[%clk 0:03:00]} 2. Bg5 {[%clk 0:02:56]}  Nf6 {[%clk 0:02:58]} 3. Nd2 {[%clk 0:02:55]}  e6 {[%clk 0:02:57]} 4. e3 {[%clk 0:02:54]}  Be7 {[%clk 0:02:57]} 5. Bd3 {[%clk 0:02:52]}  O-O {[%clk 0:02:58]} 6. f4 {[%clk 0:02:52]}  c5 {[%clk 0:02:57]} 7. c3 {[%clk 0:02:52]}  Nc6 {[%clk 0:02:57]} 8. Ngf3 {[%clk 0:02:51]}  b6 {[%clk 0:02:57]} 9. O-O {[%clk 0:02:50]}  Bb7 {[%clk 0:02:57]} 10. Ne5 {[%clk 0:02:41]}  Qc7 {[%clk 0:02:49]} 11. Qf3 {[%clk 0:02:39]}  Nd8 {[%clk 0:02:20]} 12. Qh3 {[%clk 0:02:37]}  Ne4 {[%clk 0:02:04]} 13. Bxe4 {[%clk 0:02:25]}  dxe4 {[%clk 0:02:03]} 14. Bxe7 {[%clk 0:02:14]}  Qxe7 {[%clk 0:02:04]} 15. f5 {[%clk 0:02:14]}  f6 {[%clk 0:01:39]} 16. Ng4 {[%clk 0:02:05]}  exf5 {[%clk 0:01:25]} 17. Rxf5 {[%clk 0:02:02]}  Ne6 {[%clk 0:01:25]} 18. Raf1 {[%clk 0:01:49]}  Ng5 {[%clk 0:01:23]} 19. Qg3 {[%clk 0:01:48]}  Bc8 {[%clk 0:01:16]} 20. R5f4 {[%clk 0:01:22]}  cxd4 {[%clk 0:01:09]} 21. cxd4 {[%clk 0:01:21]}  Qb4 {[%clk 0:00:57]} 22. Nb3 {[%clk 0:01:04]}  Be6 {[%clk 0:00:57]} 23. h4 {[%clk 0:01:01]}  Bxb3 {[%clk 0:00:30]} 24. hxg5 {[%clk 0:00:54]}  Bc4 {[%clk 0:00:25]} 25. gxf6 {[%clk 0:00:53]}  g6 {[%clk 0:00:16]} 26. f7+ {[%clk 0:00:50]}  Kh8 {[%clk 0:00:16]} 27. Qh4 {[%clk 0:00:50]}  Bxf1 {[%clk 0:00:11]} 28. Qf6# {[%clk 0:00:49]} 1-0


[Site "https://www.chess.com"]

[Event "Titled Tuesday Blitz April 19 Early 2022"]
[White "Ibarra Jerez, Jose Carlos"]
[Black "Chernobay, Artem"]
[WhiteFideId "2226332"]
[BlackFideId "4167406"]
[WhiteElo "2626"]
[BlackElo "2473"]
[Result "1-0"]
[Round "05"]
[TimeControl "180+1"]
[Date "2022.04.19"]
[WhiteClock "0:00:31"]
[BlackClock "0:00:18"]

1. e4 {[%clk 0:03:00]}  e5 {[%clk 0:02:59]} 2. Nf3 {[%clk 0:03:00]}  Nc6 {[%clk 0:03:00]} 3. d4 {[%clk 0:03:00]}  exd4 {[%clk 0:02:59]} 4. Nxd4 {[%clk 0:03:01]}  Nf6 {[%clk 0:03:00]} 5. Nxc6 {[%clk 0:03:00]}  bxc6 {[%clk 0:03:00]} 6. Qe2 {[%clk 0:03:01]}  d5 {[%clk 0:02:51]} 7. exd5+ {[%clk 0:02:59]}  Be7 {[%clk 0:02:51]} 8. dxc6 {[%clk 0:02:59]}  O-O {[%clk 0:02:50]} 9. Nc3 {[%clk 0:02:59]}  Bb4 {[%clk 0:02:38]} 10. Qd3 {[%clk 0:02:58]}  Qe7+ {[%clk 0:02:23]} 11. Be2 {[%clk 0:02:48]}  a5 {[%clk 0:01:58]} 12. Qe3 {[%clk 0:02:15]}  Qd6 {[%clk 0:01:55]} 13. O-O {[%clk 0:02:02]}  Re8 {[%clk 0:01:51]} 14. Qd3 {[%clk 0:02:01]}  Bxc3 {[%clk 0:01:35]} 15. bxc3 {[%clk 0:01:56]}  Qe5 {[%clk 0:01:19]} 16. Be3 {[%clk 0:01:37]}  Ba6 {[%clk 0:01:19]} 17. c4 {[%clk 0:01:33]}  Rad8 {[%clk 0:01:13]} 18. Qa3 {[%clk 0:01:26]}  Ne4 {[%clk 0:00:41]} 19. Bd3 {[%clk 0:01:14]}  Rd6 {[%clk 0:00:34]} 20. Rae1 {[%clk 0:01:08]}  Rg6 {[%clk 0:00:26]} 21. f3 {[%clk 0:00:55]}  f5 {[%clk 0:00:21]} 22. fxe4 {[%clk 0:00:47]}  fxe4 {[%clk 0:00:22]} 23. Be2 {[%clk 0:00:42]}  Bc8 {[%clk 0:00:22]} 24. Qc5 {[%clk 0:00:34]}  Qe6 {[%clk 0:00:20]} 25. Qd5 {[%clk 0:00:33]}  Rd8 {[%clk 0:00:18]} 26. Qxd8+ {[%clk 0:00:31]} 1-0


[Site "https://www.chess.com"]

[Event "Titled Tuesday Blitz April 19 Early 2022"]
[White "Iljin, Timofey"]
[Black "Jarocka, Liwia"]
[WhiteFideId "14110180"]
[BlackFideId "21807558"]
[WhiteElo "2396"]
[BlackElo "1896"]
[Result "1-0"]
[Round "05"]
[TimeControl "180+1"]
[Date "2022.04.19"]
[WhiteClock "0:01:17"]
[BlackClock "0:00:34"]

1. d4 {[%clk 0:02:57]}  Nf6 {[%clk 0:02:59]} 2. c4 {[%clk 0:02:57]}  e6 {[%clk 0:02:59]} 3. Nc3 {[%clk 0:02:48]}  Bb4 {[%clk 0:02:58]} 4. e3 {[%clk 0:02:48]}  O-O {[%clk 0:02:57]} 5. a3 {[%clk 0:02:49]}  Bxc3+ {[%clk 0:02:57]} 6. bxc3 {[%clk 0:02:50]}  d5 {[%clk 0:02:58]} 7. Bd3 {[%clk 0:02:50]}  c5 {[%clk 0:02:58]} 8. cxd5 {[%clk 0:02:51]}  Nxd5 {[%clk 0:02:57]} 9. Ne2 {[%clk 0:02:50]}  b6 {[%clk 0:02:56]} 10. Qc2 {[%clk 0:02:50]}  Nf6 {[%clk 0:02:51]} 11. O-O {[%clk 0:02:50]}  Bb7 {[%clk 0:02:50]} 12. Ng3 {[%clk 0:02:45]}  Nbd7 {[%clk 0:02:50]} 13. e4 {[%clk 0:02:45]}  cxd4 {[%clk 0:02:45]} 14. cxd4 {[%clk 0:02:45]}  Rc8 {[%clk 0:02:45]} 15. Qe2 {[%clk 0:02:45]}  e5 {[%clk 0:02:45]} 16. d5 {[%clk 0:02:43]}  Nc5 {[%clk 0:02:45]} 17. Bb2 {[%clk 0:02:42]}  Nfd7 {[%clk 0:02:38]} 18. Nf5 {[%clk 0:02:38]}  Nxd3 {[%clk 0:02:23]} 19. Qxd3 {[%clk 0:02:39]}  Nc5 {[%clk 0:02:22]} 20. Qg3 {[%clk 0:02:39]}  g6 {[%clk 0:02:08]} 21. Qxe5 {[%clk 0:02:27]}  f6 {[%clk 0:02:03]} 22. Nh6+ {[%clk 0:02:24]}  Kg7 {[%clk 0:01:59]} 23. Nf5+ {[%clk 0:02:10]}  gxf5 {[%clk 0:01:54]} 24. Qxf5 {[%clk 0:02:11]}  Qd7 {[%clk 0:01:36]} 25. Qg5+ {[%clk 0:02:08]}  Kh8 {[%clk 0:01:29]} 26. Bxf6+ {[%clk 0:02:07]}  Rxf6 {[%clk 0:01:28]} 27. Qxf6+ {[%clk 0:02:08]}  Qg7 {[%clk 0:01:28]} 28. Qxg7+ {[%clk 0:02:08]}  Kxg7 {[%clk 0:01:28]} 29. f3 {[%clk 0:02:09]}  Kf6 {[%clk 0:01:26]} 30. Rac1 {[%clk 0:02:07]}  Ke5 {[%clk 0:01:26]} 31. Rfd1 {[%clk 0:02:07]}  Rg8 {[%clk 0:01:22]} 32. Kf2 {[%clk 0:02:03]}  Ba6 {[%clk 0:01:23]} 33. Rc3 {[%clk 0:02:03]}  Rf8 {[%clk 0:01:22]} 34. Ke3 {[%clk 0:02:00]}  Re8 {[%clk 0:01:07]} 35. f4+ {[%clk 0:01:52]}  Kd6 {[%clk 0:01:07]} 36. e5+ {[%clk 0:01:48]}  Kd7 {[%clk 0:01:08]} 37. g4 {[%clk 0:01:32]}  Rg8 {[%clk 0:01:06]} 38. g5 {[%clk 0:01:32]}  Ke7 {[%clk 0:00:55]} 39. h4 {[%clk 0:01:29]}  Bc8 {[%clk 0:00:54]} 40. a4 {[%clk 0:01:20]}  Bd7 {[%clk 0:00:39]} 41. a5 {[%clk 0:01:18]}  Na4 {[%clk 0:00:34]} 42. Rc7 {[%clk 0:01:17]} 1-0


[Site "https://www.chess.com"]

[Event "Titled Tuesday Blitz April 19 Early 2022"]
[White "Indjic, Aleksandar"]
[Black "Biletskiy, Danylo"]
[WhiteFideId "911925"]
[BlackFideId "14155419"]
[WhiteElo "2616"]
[BlackElo "2087"]
[Result "1-0"]
[Round "05"]
[TimeControl "180+1"]
[Date "2022.04.19"]
[WhiteClock "0:01:03"]
[BlackClock "0:00:25"]

1. d4 {[%clk 0:03:00]}  Nf6 {[%clk 0:02:59]} 2. c4 {[%clk 0:02:58]}  e6 {[%clk 0:02:59]} 3. Nc3 {[%clk 0:02:59]}  Bb4 {[%clk 0:02:58]} 4. f3 {[%clk 0:02:59]}  c5 {[%clk 0:02:58]} 5. a3 {[%clk 0:02:57]}  Ba5 {[%clk 0:02:56]} 6. d5 {[%clk 0:02:46]}  O-O {[%clk 0:02:56]} 7. e4 {[%clk 0:02:45]}  b5 {[%clk 0:02:57]} 8. Bd2 {[%clk 0:02:39]}  bxc4 {[%clk 0:02:49]} 9. Bxc4 {[%clk 0:02:38]}  Bxc3 {[%clk 0:02:41]} 10. Bxc3 {[%clk 0:02:35]}  Nxd5 {[%clk 0:02:42]} 11. Bxd5 {[%clk 0:02:32]}  exd5 {[%clk 0:02:42]} 12. Qxd5 {[%clk 0:02:32]}  Nc6 {[%clk 0:02:38]} 13. Qxc5 {[%clk 0:02:31]}  Bb7 {[%clk 0:02:34]} 14. Ne2 {[%clk 0:02:26]}  d6 {[%clk 0:02:31]} 15. Qf2 {[%clk 0:02:24]}  d5 {[%clk 0:02:30]} 16. Rd1 {[%clk 0:02:22]}  Ne7 {[%clk 0:02:14]} 17. O-O {[%clk 0:02:17]}  Qb6 {[%clk 0:02:04]} 18. Bd4 {[%clk 0:02:13]}  Qa6 {[%clk 0:02:03]} 19. e5 {[%clk 0:01:59]}  Nf5 {[%clk 0:01:57]} 20. g4 {[%clk 0:01:56]}  Qg6 {[%clk 0:01:36]} 21. Kh1 {[%clk 0:01:45]}  Nxd4 {[%clk 0:01:25]} 22. Nxd4 {[%clk 0:01:46]}  h5 {[%clk 0:01:24]} 23. Rg1 {[%clk 0:01:45]}  Bc8 {[%clk 0:01:17]} 24. gxh5 {[%clk 0:01:41]}  Qxh5 {[%clk 0:01:18]} 25. Qe3 {[%clk 0:01:34]}  Be6 {[%clk 0:01:14]} 26. Rg5 {[%clk 0:01:33]}  Qh6 {[%clk 0:01:13]} 27. Rdg1 {[%clk 0:01:33]}  Kh8 {[%clk 0:01:05]} 28. f4 {[%clk 0:01:33]}  Rae8 {[%clk 0:00:47]} 29. f5 {[%clk 0:01:23]}  Bc8 {[%clk 0:00:37]} 30. Qf3 {[%clk 0:01:20]}  g6 {[%clk 0:00:35]} 31. R5g3 {[%clk 0:01:17]}  Qd2 {[%clk 0:00:26]} 32. Rh3+ {[%clk 0:01:15]}  Kg7 {[%clk 0:00:25]} 33. Qh5 {[%clk 0:01:03]} 1-0


[Site "https://www.chess.com"]

[Event "Titled Tuesday Blitz April 19 Early 2022"]
[White "Iskusnyh, Sergei"]
[Black "Atanejhad, Sahebali"]
[WhiteFideId "4120027"]
[BlackFideId "12506664"]
[WhiteElo "2492"]
[BlackElo "1953"]
[Result "0-1"]
[Round "05"]
[TimeControl "180+1"]
[Date "2022.04.19"]
[WhiteClock "0:01:03"]
[BlackClock "0:00:11"]

1. d4 {[%clk 0:02:56]}  Nf6 {[%clk 0:02:41]} 2. c4 {[%clk 0:02:45]}  e6 {[%clk 0:02:41]} 3. g3 {[%clk 0:02:37]}  Bb4+ {[%clk 0:02:14]} 4. Bd2 {[%clk 0:02:35]}  Qe7 {[%clk 0:01:54]} 5. Bg2 {[%clk 0:02:33]}  O-O {[%clk 0:01:48]} 6. Nc3 {[%clk 0:02:31]}  Nc6 {[%clk 0:01:44]} 7. e3 {[%clk 0:02:30]}  d5 {[%clk 0:01:39]} 8. cxd5 {[%clk 0:02:22]}  exd5 {[%clk 0:01:22]} 9. Nge2 {[%clk 0:02:21]}  Bg4 {[%clk 0:01:15]} 10. Qb3 {[%clk 0:02:18]}  Na5 {[%clk 0:01:05]} 11. Qc2 {[%clk 0:02:08]}  Nc4 {[%clk 0:01:02]} 12. Nxd5 {[%clk 0:01:43]}  Bxd2+ {[%clk 0:00:46]} 13. Qxd2 {[%clk 0:01:43]}  Nxd5 {[%clk 0:00:43]} 14. Qc2 {[%clk 0:01:41]}  Ncxe3 {[%clk 0:00:38]} 15. fxe3 {[%clk 0:01:36]}  Nxe3 {[%clk 0:00:39]} 16. Qe4 {[%clk 0:01:36]}  Nxg2+ {[%clk 0:00:39]} 17. Qxg2 {[%clk 0:01:35]}  Rfe8 {[%clk 0:00:37]} 18. O-O {[%clk 0:01:35]}  Qxe2 {[%clk 0:00:32]} 19. Rf2 {[%clk 0:01:34]}  Qe4 {[%clk 0:00:31]} 20. Qf1 {[%clk 0:01:29]}  Qxd4 {[%clk 0:00:20]} 21. h3 {[%clk 0:01:29]}  Bh5 {[%clk 0:00:15]} 22. Kh2 {[%clk 0:01:28]}  Rad8 {[%clk 0:00:13]} 23. Rc1 {[%clk 0:01:24]}  c6 {[%clk 0:00:12]} 24. Rc4 {[%clk 0:01:23]}  Qd3 {[%clk 0:00:12]} 25. Qc1 {[%clk 0:01:20]}  Re2 {[%clk 0:00:10]} 26. Rf4 {[%clk 0:01:20]}  Rxf2+ {[%clk 0:00:09]} 27. Rxf2 {[%clk 0:01:20]}  Bg6 {[%clk 0:00:09]} 28. Qg5 {[%clk 0:01:19]}  Qd7 {[%clk 0:00:09]} 29. Re2 {[%clk 0:01:17]}  h6 {[%clk 0:00:10]} 30. Qc5 {[%clk 0:01:14]}  b6 {[%clk 0:00:09]} 31. Qc3 {[%clk 0:01:10]}  c5 {[%clk 0:00:10]} 32. b4 {[%clk 0:01:06]}  Qd4 {[%clk 0:00:10]} 33. Qa3 {[%clk 0:01:04]}  Qxb4 {[%clk 0:00:09]} 34. Qxa7 {[%clk 0:01:03]}  Rd2 {[%clk 0:00:09]} 35. Qb8+ {[%clk 0:01:02]}  Kh7 {[%clk 0:00:09]} 36. Qe5 {[%clk 0:01:02]}  Rxe2+ {[%clk 0:00:09]} 37. Qxe2 {[%clk 0:01:03]}  Qe4 {[%clk 0:00:07]} 38. Qb5 {[%clk 0:01:01]}  Qc2+ {[%clk 0:00:08]} 39. Kg1 {[%clk 0:01:00]}  Qb1+ {[%clk 0:00:08]} 40. Qxb1 {[%clk 0:01:00]}  Bxb1 {[%clk 0:00:09]} 41. a3 {[%clk 0:01:01]}  c4 {[%clk 0:00:09]} 42. Kf2 {[%clk 0:01:02]}  c3 {[%clk 0:00:10]} 43. Ke3 {[%clk 0:01:02]}  c2 {[%clk 0:00:10]} 44. Kd2 {[%clk 0:01:03]}  Kg6 {[%clk 0:00:11]} 45. h4 {[%clk 0:01:03]}  Kf5 {[%clk 0:00:11]} 0-1


[Site "https://www.chess.com"]

[Event "Titled Tuesday Blitz April 19 Early 2022"]
[White "Ismayil, Malak"]
[Black "Acosta Cruz, Oscar Yosimar"]
[WhiteFideId "13412604"]
[BlackFideId "5111269"]
[WhiteElo "1879"]
[BlackElo "2147"]
[Result "1-0"]
[Round "05"]
[TimeControl "180+1"]
[Date "2022.04.19"]
[WhiteClock "0:00:58"]
[BlackClock "0:01:11"]

1. e4 {[%clk 0:03:00]}  c5 {[%clk 0:02:58]} 2. Nf3 {[%clk 0:03:00]}  d6 {[%clk 0:02:57]} 3. d4 {[%clk 0:02:59]}  cxd4 {[%clk 0:02:56]} 4. Nxd4 {[%clk 0:03:00]}  Nf6 {[%clk 0:02:55]} 5. Nc3 {[%clk 0:03:01]}  a6 {[%clk 0:02:55]} 6. Bc4 {[%clk 0:03:01]}  e6 {[%clk 0:02:51]} 7. O-O {[%clk 0:03:01]}  b5 {[%clk 0:02:51]} 8. Bb3 {[%clk 0:02:57]}  Be7 {[%clk 0:02:51]} 9. Re1 {[%clk 0:02:54]}  O-O {[%clk 0:02:48]} 10. Bg5 {[%clk 0:02:51]}  Qb6 {[%clk 0:02:42]} 11. Qd2 {[%clk 0:02:44]}  Nc6 {[%clk 0:02:39]} 12. Nxc6 {[%clk 0:02:42]}  Qxc6 {[%clk 0:02:38]} 13. a3 {[%clk 0:02:42]}  Bb7 {[%clk 0:02:36]} 14. f3 {[%clk 0:02:40]}  Rfd8 {[%clk 0:02:34]} 15. Qf2 {[%clk 0:02:37]}  Rac8 {[%clk 0:02:33]} 16. Rad1 {[%clk 0:02:33]}  a5 {[%clk 0:02:24]} 17. Be3 {[%clk 0:02:27]}  Nd7 {[%clk 0:02:04]} 18. Rd2 {[%clk 0:02:17]}  Nc5 {[%clk 0:02:02]} 19. Red1 {[%clk 0:02:13]}  Nxb3 {[%clk 0:02:01]} 20. cxb3 {[%clk 0:02:11]}  b4 {[%clk 0:02:01]} 21. axb4 {[%clk 0:02:02]}  axb4 {[%clk 0:02:00]} 22. Na4 {[%clk 0:01:59]}  d5 {[%clk 0:01:59]} 23. exd5 {[%clk 0:01:55]}  Rxd5 {[%clk 0:01:57]} 24. Rxd5 {[%clk 0:01:55]}  exd5 {[%clk 0:01:57]} 25. Rc1 {[%clk 0:01:55]}  Qb5 {[%clk 0:01:52]} 26. Rd1 {[%clk 0:01:49]}  Bf6 {[%clk 0:01:46]} 27. Qd2 {[%clk 0:01:35]}  Re8 {[%clk 0:01:36]} 28. Kf2 {[%clk 0:01:19]}  h5 {[%clk 0:01:24]} 29. Nb6 {[%clk 0:01:01]}  h4 {[%clk 0:01:16]} 30. Nxd5 {[%clk 0:00:58]}  Bxd5 {[%clk 0:01:14]} 31. Qxd5 {[%clk 0:00:59]}  Bxb2 {[%clk 0:01:11]} 32. Qxb5 {[%clk 0:00:58]} 1-0


[Site "https://www.chess.com"]

[Event "Titled Tuesday Blitz April 19 Early 2022"]
[White "Johnson, Ben"]
[Black "Barbashin, Igor"]
[WhiteFideId "2010917"]
[BlackFideId "4155718"]
[WhiteElo "2119"]
[BlackElo "2138"]
[Result "0-1"]
[Round "05"]
[TimeControl "180+1"]
[Date "2022.04.19"]
[WhiteClock "0:00:01"]
[BlackClock "0:00:08"]

1. Nf3 {[%clk 0:03:00]}  Nf6 {[%clk 0:02:57]} 2. c4 {[%clk 0:03:00]}  c5 {[%clk 0:02:57]} 3. Nc3 {[%clk 0:02:58]}  g6 {[%clk 0:02:57]} 4. d4 {[%clk 0:02:51]}  cxd4 {[%clk 0:02:56]} 5. Nxd4 {[%clk 0:02:52]}  Bg7 {[%clk 0:02:56]} 6. e4 {[%clk 0:02:46]}  d6 {[%clk 0:02:55]} 7. Be2 {[%clk 0:02:43]}  O-O {[%clk 0:02:55]} 8. O-O {[%clk 0:02:42]}  Nc6 {[%clk 0:02:55]} 9. Be3 {[%clk 0:02:42]}  Bd7 {[%clk 0:02:52]} 10. h3 {[%clk 0:02:37]}  a6 {[%clk 0:02:37]} 11. Qd2 {[%clk 0:02:33]}  Rc8 {[%clk 0:02:35]} 12. Rac1 {[%clk 0:02:20]}  Re8 {[%clk 0:02:33]} 13. b3 {[%clk 0:02:13]}  Nxd4 {[%clk 0:02:28]} 14. Bxd4 {[%clk 0:02:13]}  Bc6 {[%clk 0:02:28]} 15. Bf3 {[%clk 0:01:41]}  e6 {[%clk 0:02:15]} 16. Rfe1 {[%clk 0:01:34]}  Qe7 {[%clk 0:02:10]} 17. Bb6 {[%clk 0:01:23]}  Nd7 {[%clk 0:02:09]} 18. Be3 {[%clk 0:01:16]}  Red8 {[%clk 0:02:02]} 19. Bg5 {[%clk 0:01:08]}  Bf6 {[%clk 0:01:32]} 20. h4 {[%clk 0:00:52]}  Ne5 {[%clk 0:01:26]} 21. Bd1 {[%clk 0:00:45]}  b5 {[%clk 0:01:11]} 22. f4 {[%clk 0:00:39]}  Nd7 {[%clk 0:01:10]} 23. Nd5 {[%clk 0:00:24]}  Bxd5 {[%clk 0:00:51]} 24. exd5 {[%clk 0:00:24]}  Bxg5 {[%clk 0:00:32]} 25. hxg5 {[%clk 0:00:21]}  bxc4 {[%clk 0:00:32]} 26. Rxc4 {[%clk 0:00:20]}  e5 {[%clk 0:00:20]} 27. Rxc8 {[%clk 0:00:17]}  Rxc8 {[%clk 0:00:20]} 28. Bg4 {[%clk 0:00:17]}  Re8 {[%clk 0:00:15]} 29. Bxd7 {[%clk 0:00:15]}  Qxd7 {[%clk 0:00:15]} 30. fxe5 {[%clk 0:00:14]}  dxe5 {[%clk 0:00:15]} 31. Re4 {[%clk 0:00:10]}  Qd6 {[%clk 0:00:14]} 32. Qe3 {[%clk 0:00:08]}  Qxd5 {[%clk 0:00:13]} 33. Kh2 {[%clk 0:00:04]}  Kg7 {[%clk 0:00:12]} 34. Rh4 {[%clk 0:00:03]}  Qd6 {[%clk 0:00:10]} 35. Qh3 {[%clk 0:00:02]}  Re6 {[%clk 0:00:08]} 36. Rxh7+ {[%clk 0:00:01]}  Kf8 {[%clk 0:00:09]} 37. Rh8+ {[%clk 0:00:01]}  Ke7 {[%clk 0:00:09]} 38. Qh6 {[%clk 0:00:01]}  e4+ {[%clk 0:00:08]} 0-1


[Site "https://www.chess.com"]

[Event "Titled Tuesday Blitz April 19 Early 2022"]
[White "Kaasen, Tor Fredrik"]
[Black "Tasev, Dejan"]
[WhiteFideId "1516647"]
[BlackFideId "936618"]
[WhiteElo "2335"]
[BlackElo "2253"]
[Result "0-1"]
[Round "05"]
[TimeControl "180+1"]
[Date "2022.04.19"]
[WhiteClock "0:00:02"]
[BlackClock "0:00:41"]

1. e4 {[%clk 0:02:38]}  e5 {[%clk 0:02:58]} 2. Nf3 {[%clk 0:02:38]}  Nc6 {[%clk 0:02:55]} 3. Bc4 {[%clk 0:02:38]}  Nf6 {[%clk 0:02:55]} 4. d3 {[%clk 0:02:39]}  Bc5 {[%clk 0:02:54]} 5. O-O {[%clk 0:02:39]}  d6 {[%clk 0:02:54]} 6. c3 {[%clk 0:02:39]}  Bb6 {[%clk 0:02:52]} 7. Re1 {[%clk 0:02:37]}  h6 {[%clk 0:02:51]} 8. a4 {[%clk 0:02:35]}  a5 {[%clk 0:02:49]} 9. Nbd2 {[%clk 0:02:32]}  Be6 {[%clk 0:02:45]} 10. Bxe6 {[%clk 0:02:25]}  fxe6 {[%clk 0:02:45]} 11. Qb3 {[%clk 0:02:25]}  Qc8 {[%clk 0:02:40]} 12. Nc4 {[%clk 0:02:22]}  Ba7 {[%clk 0:02:39]} 13. Be3 {[%clk 0:02:22]}  Bxe3 {[%clk 0:02:38]} 14. Rxe3 {[%clk 0:02:22]}  O-O {[%clk 0:02:36]} 15. Rd1 {[%clk 0:02:16]}  b6 {[%clk 0:02:30]} 16. d4 {[%clk 0:02:16]}  exd4 {[%clk 0:02:30]} 17. cxd4 {[%clk 0:02:10]}  Ng4 {[%clk 0:02:24]} 18. Rc3 {[%clk 0:02:04]}  Qe8 {[%clk 0:02:16]} 19. Qb5 {[%clk 0:01:48]}  Nb4 {[%clk 0:02:08]} 20. Qxe8 {[%clk 0:01:45]}  Raxe8 {[%clk 0:02:09]} 21. Na3 {[%clk 0:01:43]}  Re7 {[%clk 0:01:56]} 22. Nb5 {[%clk 0:01:42]}  Rff7 {[%clk 0:01:51]} 23. e5 {[%clk 0:01:37]}  dxe5 {[%clk 0:01:38]} 24. dxe5 {[%clk 0:01:14]}  Rd7 {[%clk 0:01:29]} 25. Rf1 {[%clk 0:00:45]}  Nd5 {[%clk 0:01:25]} 26. Rc4 {[%clk 0:00:43]}  Rxf3 {[%clk 0:01:19]} 27. gxf3 {[%clk 0:00:40]}  Nxe5 {[%clk 0:01:19]} 28. Re4 {[%clk 0:00:41]}  Nxf3+ {[%clk 0:01:19]} 29. Kh1 {[%clk 0:00:39]}  Nd2 {[%clk 0:01:19]} 30. Rfe1 {[%clk 0:00:36]}  Nxe4 {[%clk 0:01:19]} 31. Rxe4 {[%clk 0:00:37]}  Kf7 {[%clk 0:01:17]} 32. Kg2 {[%clk 0:00:36]}  Nf6 {[%clk 0:01:11]} 33. Re2 {[%clk 0:00:36]}  c5 {[%clk 0:01:08]} 34. Nc3 {[%clk 0:00:27]}  Rd3 {[%clk 0:01:06]} 35. f3 {[%clk 0:00:25]}  Nd5 {[%clk 0:01:04]} 36. Re1 {[%clk 0:00:08]}  Rd2+ {[%clk 0:00:58]} 37. Kg3 {[%clk 0:00:07]}  Rxb2 {[%clk 0:00:57]} 38. Ne4 {[%clk 0:00:08]}  Ke7 {[%clk 0:00:49]} 39. h4 {[%clk 0:00:08]}  Rb4 {[%clk 0:00:47]} 40. h5 {[%clk 0:00:05]}  Rxa4 {[%clk 0:00:46]} 41. Kh4 {[%clk 0:00:06]}  Nf6 {[%clk 0:00:45]} 42. Re2 {[%clk 0:00:05]}  Nxe4 {[%clk 0:00:45]} 43. fxe4 {[%clk 0:00:06]}  Rb4 {[%clk 0:00:43]} 44. Kg4 {[%clk 0:00:05]}  a4 {[%clk 0:00:43]} 45. Kf4 {[%clk 0:00:05]}  a3 {[%clk 0:00:43]} 46. Rg2 {[%clk 0:00:06]}  Kf7 {[%clk 0:00:43]} 47. Ke5 {[%clk 0:00:06]}  Rb2 {[%clk 0:00:42]} 48. Rg1 {[%clk 0:00:07]}  a2 {[%clk 0:00:42]} 49. Rf1+ {[%clk 0:00:08]}  Ke7 {[%clk 0:00:43]} 50. Ra1 {[%clk 0:00:03]}  c4 {[%clk 0:00:42]} 51. Rf1 {[%clk 0:00:02]}  Rb1 {[%clk 0:00:41]} 0-1


[Site "https://www.chess.com"]